{"text_format":"3","workbook":"xlsx","n_sheets":2,"sheets":["Sledovanie aktivity","Zoznam aktivít"],"not_rendered":{"charts":1,"defined_names":15},"read":"whole","date_system":"1900"}

{"sheet":"Sledovanie aktivity","index":0,"n_rows":23,"n_cols":11,"rows_kept":23,"merged":[[0,0,0,2],[0,3,3,10],[1,0,1,2],[2,0,5,0],[2,1,3,1],[4,1,5,1],[6,0,9,0],[6,1,7,1],[8,1,9,1],[10,0,13,0],[10,1,11,1],[12,1,13,1],[14,0,17,0],[14,1,15,1],[16,1,17,1],[18,0,21,0],[18,1,19,1],[20,1,21,1],[22,0,23,0],[22,1,23,1],[22,2,23,2]]}
["Sledovanie aktivity"]
["Sledujte svojich 5 najobľúbenejších aktivít Informácie o aktivitách uvedené nižšie zameňte za aktivity, ktorú robíte najčastejšie. Do denníka aktivít k nim potom pridajte záznamy a sledujte, ako napredujete."]
["Bicyklovanie",{"$f":"SUMIF(Zoznam[Aktivita],Kategória1,Zoznam[Súčet])","v":{"v":19.46,"d":"19.5"}}]
[null,null,"Míle"]
[null,{"$f":"SUMIF(Zoznam[Aktivita],Kategória1,Zoznam[Kalórie])","v":847},"Kalórie","Dátum","Aktivita","Čas začatia","Trvanie","Súčet","Jednotka","Kalórie","Poznámka"]
[{"$nulls":3},"Dátum","Bicyklovanie","16:00:00",0.015972222222222224,3.66,{"$f":"IFERROR(VLOOKUP(Zoznam[[#This Row],[Aktivita]],VyhľadanieAktivity,2,FALSE),\"\")","v":"Míle"},173,"Teplo a vlhko"]
["Plávanie",{"$f":"SUMIF(Zoznam[Aktivita],Kategória2,Zoznam[Súčet])","v":{"v":1700,"d":"1700.0"}},null,"Dátum","Bicyklovanie","14:30:00",0.03125,7.8,{"$f":"IFERROR(VLOOKUP(Zoznam[[#This Row],[Aktivita]],VyhľadanieAktivity,2,FALSE),\"\")","v":"Míle"},330,"Chladné popoludnie"]
[null,null,"Metre","Dátum","Plávanie","10:00:00",0.020833333333333332,1700,{"$f":"IFERROR(VLOOKUP(Zoznam[[#This Row],[Aktivita]],VyhľadanieAktivity,2,FALSE),\"\")","v":"Metre"},237,"Dobrý spánok predchádzajúcu noc"]
[null,{"$f":"SUMIF(Zoznam[Aktivita],Kategória2,Zoznam[Kalórie])","v":237},"Kalórie","Dátum","Aktivita 3","13:30:00",0.024305555555555556,3227,{"$f":"IFERROR(VLOOKUP(Zoznam[[#This Row],[Aktivita]],VyhľadanieAktivity,2,FALSE),\"\")","v":"Kroky"},150]
[{"$nulls":3},"Dátum","Aktivita 4","05:30:00",0.020833333333333332,30,{"$f":"IFERROR(VLOOKUP(Zoznam[[#This Row],[Aktivita]],VyhľadanieAktivity,2,FALSE),\"\")","v":"Opakovania"},115]
["Aktivita 3",{"$f":"SUMIF(Zoznam[Aktivita],Kategória3,Zoznam[Súčet])","v":{"v":3227,"d":"3227.0"}},null,"Dátum","Aktivita 5","06:00:00",0.03125,5,{"$f":"IFERROR(VLOOKUP(Zoznam[[#This Row],[Aktivita]],VyhľadanieAktivity,2,FALSE),\"\")","v":"Míle"},345]
[null,null,"Kroky","Dátum","Bicyklovanie","10:00:00",0.027777777777777776,8,{"$f":"IFERROR(VLOOKUP(Zoznam[[#This Row],[Aktivita]],VyhľadanieAktivity,2,FALSE),\"\")","v":"Míle"},344]
[null,{"$f":"SUMIF(Zoznam[Aktivita],Kategória3,Zoznam[Kalórie])","v":150},"Kalórie"]
[]
["Aktivita 4",{"$f":"SUMIF(Zoznam[Aktivita],Kategória4,Zoznam[Súčet])","v":{"v":30,"d":"30.0"}}]
[null,null,"Opakovania"]
[null,{"$f":"SUMIF(Zoznam[Aktivita],Kategória4,Zoznam[Kalórie])","v":115},"Kalórie"]
[]
["Aktivita 5",{"$f":"SUMIF(Zoznam[Aktivita],Kategória5,Zoznam[Súčet])","v":{"v":5,"d":"5.0"}}]
[null,null,"Míle"]
[null,{"$f":"SUMIF(Zoznam[Aktivita],Kategória5,Zoznam[Kalórie])","v":345},"Kalórie"]
[]
["Súčet",{"$f":"SUM(B21,B17,B13,B9,B5)","v":1694},"Kalórie"]

{"sheet":"Zoznam aktivít","index":1,"n_rows":8,"n_cols":3,"rows_kept":8,"hidden":true,"merged":[[0,1,0,2],[1,1,1,2]]}
[null,"Zoznam aktivít"]
[null,"zoznam uvedený nižšie je previazaný s vlastnými aktivitami a vyplní rozbaľovací zoznam v denníku aktivít. Tento hárok má zostať skrytý."]
[null,"Aktivita","Jednotka"]
[null,{"$f":"TRIM(Kategória1)","v":"Bicyklovanie"},{"$f":"Kategória1Jednotka","v":"Míle"}]
[null,{"$f":"TRIM(Kategória2)","v":"Plávanie"},{"$f":"Kategória2Jednotka","v":"Metre"}]
[null,{"$f":"TRIM(Kategória3)","v":"Aktivita 3"},{"$f":"Kategória3Jednotka","v":"Kroky"}]
[null,{"$f":"TRIM(Kategória4)","v":"Aktivita 4"},{"$f":"Kategória4Jednotka","v":"Opakovania"}]
[null,{"$f":"TRIM(Kategória5)","v":"Aktivita 5"},{"$f":"Kategória5Jednotka","v":"Míle"}]